fUST/lending_fUST_20241222
["ID","MTS","AMOUNT","RATE_DAILY","PERIOD"]
[346281249,1734864638817,-500.0,0.00012,2]
[346281251,1734864638827,-500.0,0.00012,2]
[346281253,1734864638835,-500.0,0.00012,2]
[346281255,1734864638845,-500.0,0.00012,2]
[346281257,1734864638855,-500.0,0.00012,2]
[346281259,1734864638864,-500.0,0.00012,2]
[346281261,1734864638873,-500.0,0.00012,2]
[346281263,1734864638883,-500.0,0.00012,2]
[346281265,1734864638892,-476.58,0.00012,2]
[346281267,1734864638901,-500.0,0.00012,2]
[346281269,1734864638914,-500.0,0.00012,2]
[346281271,1734864638923,-500.0,0.00012,2]
[346281273,1734864638932,-500.0,0.00012,2]
[346281275,1734864638942,-500.0,0.00012,2]
[346281277,1734864638951,-500.0,0.00012,2]
[346281279,1734864638961,-500.0,0.00012,2]
[346281281,1734864638971,-500.0,0.00012,2]
[346281283,1734864638981,-500.0,0.00012,2]
[346281285,1734864638990,-359.744,0.0001235,2]
[346281287,1734864638999,-420.0,0.00012467,2]
[346281289,1734864639009,-420.0,0.00012484,2]
[346281291,1734864639018,-239.423,0.0001257,2]
[346281293,1734864639029,-174.087,0.00012672,2]
[346281295,1734864639037,-352.1566237,0.000127,2]
[346281297,1734864639046,-153.0,0.000129,2]
[346281299,1734864639054,-153.0,0.000129,2]
[346281301,1734864639064,-153.3554759,0.00012927,2]
[346281303,1734864639072,-214.1010007,0.00012927,2]
[346281305,1734864639082,-163.24348379,0.00012973,2]
[346281307,1734864639091,-500.0,0.00012973,2]
[346281309,1734864639101,-500.0,0.00012973,2]
[346281311,1734864639110,-500.0,0.00012973,2]
[346281313,1734864639119,-500.0,0.00012973,2]
[346281315,1734864639129,-500.0,0.00012973,2]
[346281317,1734864639138,-179.14024994,0.00012973,2]
[346281319,1734864639148,-500.0,0.00012973,2]
[346281322,1734864639157,-250.92173748,0.00012973,2]
[346281324,1734864639167,-436.44898955,0.00012973,2]
[346281325,1734864639175,-500.20929514,0.00012973,2]
[346281328,1734864639185,-610.1635151,0.00012973,2]
[346281329,1734864639198,-500.0,0.00012973,2]
[346281332,1734864639207,-500.0,0.00012973,2]
[346281334,1734864639218,-500.61383283,0.00012973,2]
[346281336,1734864639227,-500.0,0.00012973,2]
[346281338,1734864639237,-501.20063852,0.00012973,2]
[346281339,1734864639247,-500.0,0.00012973,2]
[346281342,1734864639257,-500.0,0.00012973,2]
[346281343,1734864639266,-160.86049665,0.00012973,2]
[346281345,1734864639275,-378.95029819,0.00012973,2]
[346281348,1734864639284,-500.0,0.00012973,2]
[346281350,1734864639294,-397.91937578,0.00012973,2]
[346281351,1734864639303,-283.38872671,0.00012973,2]
[346281353,1734864639312,-17719.79631892,0.0001299,5]
[346281356,1734864639326,-1614.445,0.0001299,5]
[346281706,1734864643762,-459.99999957,0.00012611,2]
[346281722,1734864643908,-650.0654653,0.00012611,2]
[346281724,1734864643919,-500.0,0.00012611,2]
[346281745,1734864644099,-1000.0,0.00012611,2]
[346281747,1734864644112,-407.90727512,0.00012611,2]
[346283409,1734864720460,10000.0,0.0002,60]
[346283410,1734864736661,7700.0,0.0002,60]
[346283436,1734865832386,-344.83,0.0001235,2]
[346283437,1734865832395,-300.0,0.0001259,2]
[346283438,1734865832404,-237.505,0.0001259,2]
[346283452,1734865838509,-62.495,0.0001259,2]
[346283454,1734865838519,-385.22629026,0.00012591,2]
[346283456,1734865838530,-4053.97438878,0.00012591,2]
[346283481,1734865838751,-3216.24,0.00012591,2]
[346284616,1734866425604,1392.79002302,0.0002,120]
[346284686,1734867032588,-300.212836,0.0001158,2]
[346284687,1734867032598,-98.76200634,0.000119,2]
[346284722,1734867038434,-245.46533765,0.000119,2]
[346284724,1734867038444,-480.24136398,0.000119,2]
[346284726,1734867038454,-300.0,0.00011998,2]
[346284728,1734867038464,-300.0,0.00011998,2]
[346284730,1734867038473,-500.0,0.00012,2]
[346284732,1734867038483,-500.0,0.00012,2]
[346284734,1734867038492,-500.0,0.00012,2]
[346284735,1734867038502,-500.0,0.00012,2]
[346284737,1734867038511,-500.0,0.00012,2]
[346284739,1734867038521,-109.75735479,0.00012,2]
[346284742,1734867038533,-390.24264521,0.00012,2]
[346284743,1734867038543,-500.0,0.00012,2]
[346284745,1734867038552,-500.0,0.00012,2]
[346284747,1734867038562,-400.66041044,0.00012,2]
[346284753,1734867038612,-99.33958956,0.00012,2]
[346284755,1734867038622,-500.0,0.00012,2]
[346284757,1734867038631,-500.0,0.00012,2]
[346284758,1734867038640,-500.0,0.00012,2]
[346284760,1734867038650,-500.0,0.00012,2]
[346284762,1734867038659,-500.0,0.00012,2]
[346284764,1734867038668,-500.0,0.00012,2]
[346284766,1734867038677,-210.75790957,0.00012,2]
[346284768,1734867038690,-289.24209043,0.00012,2]
[346284770,1734867038699,-500.0,0.00012,2]
[346284772,1734867038708,-500.0,0.00012,2]
[346284775,1734867038717,-305.01737825,0.00012,2]
[346284948,1734867040529,-194.98262175,0.00012,2]
[346284950,1734867040540,-500.0,0.00012,2]
[346284952,1734867040550,-500.0,0.00012,2]
[346284954,1734867040560,-222.4588773,0.00012,2]
[346284957,1734867040581,-277.5411227,0.00012,2]
[346284959,1734867040591,-500.0,0.00012,2]
[346284961,1734867040600,-500.0,0.00012,2]
[346284963,1734867040610,-77.00954894,0.00012,2]
[346285350,1734867044364,-422.99045106,0.00012,2]
[346285352,1734867044373,-500.0,0.00012,2]
[346285354,1734867044383,-337.63605989,0.00012,2]
[346285357,1734867044394,-162.36394011,0.00012,2]
[346285358,1734867044403,-500.0,0.00012,2]
[346285360,1734867044413,-136.05328192,0.00012,2]
[346285363,1734867044424,-363.94671808,0.00012,2]
[346285365,1734867044434,-500.0,0.00012,2]
[346285367,1734867044443,-500.0,0.00012,2]
[346285369,1734867044452,-500.0,0.00012,2]
[346285371,1734867044460,-500.0,0.00012,2]
[346285373,1734867044469,-500.0,0.00012,2]
[346285375,1734867044479,-500.0,0.00012,2]
[346285377,1734867044488,-500.0,0.00012,2]
[346285379,1734867044497,-500.0,0.00012,2]
[346285381,1734867044506,-500.0,0.00012,2]
[346285384,1734867044515,-500.0,0.00012,2]
[346285385,1734867044524,-500.0,0.00012,2]
[346285387,1734867044533,-500.0,0.00012,2]
[346285389,1734867044542,-500.0,0.00012,2]
[346285391,1734867044551,-500.0,0.00012,2]
[346285393,1734867044560,-500.0,0.00012,2]
[346285395,1734867044571,-500.0,0.00012,2]
[346285397,1734867044580,-500.0,0.00012,2]
[346285399,1734867044593,-500.0,0.00012,2]
[346285401,1734867044602,-500.0,0.00012,2]
[346285403,1734867044611,-500.0,0.00012,2]
[346285405,1734867044621,-500.0,0.00012,2]
[346285407,1734867044634,-500.0,0.00012,2]
[346285409,1734867044643,-498.34,0.00012,2]
[346285411,1734867044652,-500.0,0.00012,2]
[346285413,1734867044662,-500.0,0.00012,2]
[346285415,1734867044671,-500.0,0.00012,2]
[346285417,1734867044680,-500.0,0.00012,2]
[346285419,1734867044690,-500.0,0.00012,2]
[346285421,1734867044700,-500.0,0.00012,2]
[346285423,1734867044710,-500.0,0.00012,2]
[346285425,1734867044719,-500.0,0.00012,2]
[346285427,1734867044729,-500.0,0.00012,2]
[346285429,1734867044739,-500.0,0.00012,2]
[346285431,1734867044748,-500.0,0.00012,2]
[346285433,1734867044757,-500.0,0.00012,2]
[346285435,1734867044767,-500.0,0.00012,2]
[346285437,1734867044775,-500.0,0.00012,2]
[346285439,1734867044784,-500.0,0.00012,2]
[346285441,1734867044794,-500.0,0.00012,2]
[346285443,1734867044803,-500.0,0.00012,2]
[346285445,1734867044812,-500.0,0.00012,2]
[346285447,1734867044822,-500.0,0.00012,2]
[346285449,1734867044831,-500.0,0.00012,2]
[346285451,1734867044842,-500.0,0.00012,2]
[346285453,1734867044851,-500.0,0.00012,2]
[346285455,1734867044860,-500.0,0.00012,2]
[346285457,1734867044869,-500.0,0.00012,2]
[346285459,1734867044879,-500.0,0.00012,2]
[346285461,1734867044888,-500.0,0.00012,2]
[346285463,1734867044898,-500.0,0.00012,2]
[346285465,1734867044907,-500.0,0.00012,2]
[346285467,1734867044916,-500.0,0.00012,2]
[346285469,1734867044925,-500.0,0.00012,2]
[346285471,1734867044934,-500.0,0.00012,2]
[346285473,1734867044944,-500.0,0.00012,2]
[346285475,1734867044954,-151.0,0.00012,2]
[346285477,1734867044963,-151.0,0.00012,2]
[346285479,1734867044972,-151.0,0.00012,2]
[346285481,1734867044982,-151.0,0.00012,2]
[346285483,1734867044991,-153.317045,0.00012,2]
[346285485,1734867045000,-151.0,0.00012,2]
[346285487,1734867045009,-151.0,0.00012,2]
[346285489,1734867045019,-206.058468,0.00012,2]
[346285491,1734867045029,-217.113717,0.00012,2]
[346285492,1734867045039,-217.113717,0.00012,2]
[346285494,1734867045050,-217.113717,0.00012,2]
[346285495,1734867045059,-217.113717,0.00012,2]
[346285497,1734867045068,-217.113717,0.00012,2]
[346285499,1734867045078,-217.113717,0.00012,2]
[346285501,1734867045087,-217.113717,0.00012,2]
[346285502,1734867045097,-217.113717,0.00012,2]
[346285503,1734867045106,-151.0,0.00012,2]
[346285504,1734867045118,-151.0,0.00012,2]
[346285505,1734867045127,-151.0,0.00012,2]
[346285506,1734867045137,-151.0,0.00012,2]
[346285507,1734867045147,-293.051531,0.00012,2]
[346285508,1734867045156,-293.051531,0.00012,2]
[346285509,1734867045166,-293.051531,0.00012,2]
[346285510,1734867045176,-293.051531,0.00012,2]
[346285511,1734867045185,-293.051531,0.00012,2]
[346285512,1734867045196,-293.051531,0.00012,2]
[346285513,1734867045205,-293.051531,0.00012,2]
[346285514,1734867045215,-293.051531,0.00012,2]
[346285515,1734867045224,-155.212066,0.00012,2]
[346285516,1734867045234,-155.212066,0.00012,2]
[346285517,1734867045243,-155.212066,0.00012,2]
[346285518,1734867045253,-155.212066,0.00012,2]
[346285519,1734867045262,-155.212066,0.00012,2]
[346285520,1734867045271,-155.212066,0.00012,2]
[346285521,1734867045281,-155.212066,0.00012,2]
[346285522,1734867045290,-155.212066,0.00012,2]
[346285523,1734867045300,-151.0,0.00012,2]
[346285524,1734867045310,-151.0,0.00012,2]
[346285525,1734867045319,-151.0,0.00012,2]
[346285526,1734867045329,-151.0,0.00012,2]
[346285527,1734867045341,-151.0,0.00012,2]
[346285528,1734867045351,-151.0,0.00012,2]
[346285529,1734867045361,-151.0,0.00012,2]
[346285530,1734867045370,-151.0,0.00012,2]
[346285531,1734867045380,-166.541313,0.00012,2]
[346285532,1734867045390,-480.24136395,0.00012125,2]
[346285533,1734867045399,-227.0098644,0.00012133,2]
[346285534,1734867045409,-345.085,0.0001234,2]
[346285535,1734867045418,-151.0,0.0001234,2]
[346285536,1734867045428,-480.24136395,0.0001235,2]
[346285537,1734867045437,-217.113717,0.0001235,2]
[346285538,1734867045446,-217.113717,0.0001235,2]
[346285539,1734867045456,-151.0,0.0001235,2]
[346285540,1734867045466,-293.051531,0.0001235,2]
[346285541,1734867045478,-293.051531,0.0001235,2]
[346285542,1734867045488,-169.92,0.00012522,2]
[346285543,1734867045498,-156.01,0.00012522,2]
[346285544,1734867045507,-480.24136395,0.00012575,2]
[346285545,1734867045517,-155.212066,0.00012575,2]
[346285546,1734867045526,-155.212066,0.00012575,2]
[346285547,1734867045536,-151.0,0.00012591,2]
[346285548,1734867045546,-217.113717,0.00012591,2]
[346285549,1734867045555,-217.113717,0.00012591,2]
[346285550,1734867045565,-293.051531,0.00012591,2]
[346285551,1734867045575,-293.051531,0.00012591,2]
[346285552,1734867045584,-155.212066,0.00012591,2]
[346285553,1734867045595,-155.212066,0.00012591,2]
[346285555,1734867045605,-151.0,0.00012591,2]
[346285556,1734867045615,-151.0,0.00012591,2]
[346285557,1734867045625,-6027.3636586,0.00012591,2]
[346285558,1734867045635,-150.371,0.00012611,2]
[346285559,1734867045645,-217.113717,0.0001262,2]
[346285560,1734867045655,-217.113717,0.0001262,2]
[346285561,1734867045664,-293.051531,0.0001262,2]
[346285562,1734867045673,-293.051531,0.0001262,2]
[346285563,1734867045683,-155.212066,0.0001262,2]
[346285564,1734867045694,-155.212066,0.0001262,2]
[346285565,1734867045704,-151.0,0.0001262,2]
[346285566,1734867045714,-151.0,0.0001262,2]
[346285567,1734867045724,-239.423,0.0001262,2]
[346285568,1734867045734,-174.513,0.0001268,2]
[346285569,1734867045744,-153.0,0.000127,2]
[346285570,1734867045754,-214.1010007,0.000127,2]
[346285571,1734867045768,-153.3554759,0.000127,2]
[346285572,1734867045782,-153.0,0.000127,2]
[346285573,1734867045792,-480.24136395,0.000128,2]
[346285575,1734867045802,-100000.84280668,0.000129,2]
[346285577,1734867045811,-217.113717,0.000129,2]
[346285579,1734867045821,-217.113717,0.000129,2]
[346285580,1734867045830,-293.051531,0.000129,2]
[346285581,1734867045843,-293.051531,0.000129,2]
[346285583,1734867045853,-155.212066,0.000129,2]
[346285584,1734867045862,-155.212066,0.000129,2]
[346285585,1734867045872,-151.0,0.000129,2]
[346285586,1734867045881,-151.0,0.000129,2]
[346285587,1734867045890,-378.95029819,0.00012973,2]
[346285588,1734867045900,-500.0,0.00012973,2]
[346285589,1734867045909,-163.24348379,0.00012973,2]
[346285590,1734867045919,-500.0,0.00012973,2]
[346285591,1734867045928,-500.0,0.00012973,2]
[346285592,1734867045938,-500.0,0.00012973,2]
[346285593,1734867045948,-160.86049665,0.00012973,2]
[346285594,1734867045958,-563.71829188,0.00012973,2]
[346285595,1734867045967,-500.0,0.00012973,2]
[346285596,1734867045977,-179.14024994,0.00012973,2]
[346285597,1734867045987,-500.0,0.00012973,2]
[346285598,1734867045997,-501.20063852,0.00012973,2]
[346285599,1734867046006,-217.113717,0.00012973,2]
[346285600,1734867046015,-217.113717,0.00012973,2]
[346285601,1734867046025,-293.051531,0.00012973,2]
[346285602,1734867046035,-293.051531,0.00012973,2]
[346285603,1734867046045,-155.212066,0.00012973,2]
[346285604,1734867046055,-155.212066,0.00012973,2]
[346285605,1734867046065,-265.590405,0.00012973,2]
[346285606,1734867046075,-151.0,0.00012973,2]
[346285607,1734867046085,-151.0,0.00012973,2]
[346285608,1734867046094,-155.212066,0.00012989,2]
[346285609,1734867046104,-155.212059,0.00012989,2]
[346285610,1734867046115,-44197.7076459,0.0001299,5]
[346285623,1734867474437,86551.28013927,0.0002,120]
[346285624,1734867474464,180222.06764621,0.0002,120]
[346285660,1734868232763,-467.505,0.000119,2]
[346285669,1734868232833,-134.58117986,0.000119,2]
[346285673,1734868232843,-300.0,0.00011999,2]
[346285677,1734868232852,-300.0,0.00011999,2]
[346285680,1734868232863,-500.0,0.00012,2]
[346285686,1734868232876,-500.0,0.00012,2]
[346285687,1734868233082,-500.0,0.00012,2]
[346285688,1734868233092,-500.0,0.00012,2]
[346285689,1734868233102,-500.0,0.00012,2]
[346285691,1734868233111,-500.0,0.00012,2]
[346285693,1734868233121,-320.0189238,0.00012,2]
[346285695,1734868233133,-179.9810762,0.00012,2]
[346285698,1734868233143,-500.0,0.00012,2]
[346285699,1734868233151,-494.31129691,0.00012,2]
[346286045,1734868238533,-5.68870309,0.00012,2]
[346286046,1734868238542,-500.0,0.00012,2]
[346286048,1734868238552,-500.0,0.00012,2]
[346286050,1734868238562,-500.0,0.00012,2]
[346286052,1734868238571,-500.0,0.00012,2]
[346286054,1734868238580,-500.0,0.00012,2]
[346286056,1734868238590,-500.0,0.00012,2]
[346286057,1734868238599,-500.0,0.00012,2]
[346286059,1734868238609,-500.0,0.00012,2]
[346286061,1734868238618,-500.0,0.00012,2]
[346286063,1734868238627,-500.0,0.00012,2]
[346286064,1734868238636,-500.0,0.00012,2]
[346286065,1734868238646,-500.0,0.00012,2]
[346286066,1734868238655,-500.0,0.00012,2]
[346286067,1734868238664,-500.0,0.00012,2]
[346286068,1734868238674,-500.0,0.00012,2]
[346286069,1734868238683,-500.0,0.00012,2]
[346286070,1734868238692,-500.0,0.00012,2]
[346286071,1734868238703,-500.0,0.00012,2]
[346286072,1734868238720,-500.0,0.00012,2]
[346286073,1734868238732,-500.0,0.00012,2]
[346286074,1734868238742,-500.0,0.00012,2]
[346286075,1734868238752,-500.0,0.00012,2]
[346286076,1734868238762,-500.0,0.00012,2]
[346286078,1734868238771,-500.0,0.00012,2]
[346286080,1734868238780,-500.0,0.00012,2]
[346286082,1734868238790,-500.0,0.00012,2]
[346286084,1734868238800,-500.0,0.00012,2]
[346286086,1734868238810,-500.0,0.00012,2]
[346286088,1734868238820,-500.0,0.00012,2]
[346286089,1734868238829,-463.8,0.00012,2]
[346286090,1734868238839,-331.095,0.0001234,2]
[346286091,1734868238848,-348.11452924,0.00012668,2]
[346286092,1734868238858,-500.0,0.00012668,2]
[346286093,1734868238868,-159.20644468,0.00012668,2]
[346286094,1734868238877,-500.0,0.00012668,2]
[346286095,1734868238887,-500.0,0.00012668,2]
[346286096,1734868238896,-500.0,0.00012668,2]
[346286097,1734868238910,-500.0,0.00012668,2]
[346286098,1734868238920,-533.0,0.00012669,2]
[346286099,1734868238929,-174.513,0.000127,2]
[346286100,1734868238938,-487.67187444,0.00012973,2]
[346286149,1734868240915,-4294.71144856,0.000129,2]
[346286150,1734868240924,-12.32812556,0.00012973,2]
[346286151,1734868240934,-500.0,0.00012973,2]
[346286152,1734868240943,-250.92173748,0.00012973,2]
[346286153,1734868240953,-500.0,0.00012973,2]
[346286154,1734868240962,-136.77144005,0.00012973,2]
[346286155,1734868240974,-363.22855995,0.00012973,2]
[346286156,1734868240984,-500.0,0.00012973,2]
[346286157,1734868240993,-500.0,0.00012973,2]
[346286158,1734868241002,-500.0,0.00012973,2]
[346286159,1734868241011,-248.8486884,0.00012973,2]
[346286216,1734868244631,-34484.0,0.00012669,2]
[346286217,1734868244641,-149.07068738,0.00012973,2]
[346286218,1734868244651,-500.0,0.00012973,2]
[346286219,1734868244660,-500.0,0.00012973,2]
[346286220,1734868244670,-500.0,0.00012973,2]
[346286221,1734868244679,-500.0,0.00012973,2]
[346286222,1734868244688,-500.0,0.00012973,2]
[346286223,1734868244699,-283.38872671,0.00012973,2]
[346286224,1734868244708,-500.0,0.00012973,2]
[346286225,1734868244718,-436.44898955,0.00012973,2]
[346286226,1734868244727,-500.0,0.00012973,2]
[346286228,1734868244737,-500.20929514,0.00012973,2]
[346286229,1734868244746,-500.0,0.00012973,2]
[346286231,1734868244756,-610.1635151,0.00012973,2]
[346286233,1734868244766,-45489.09672538,0.0001299,5]
[346286235,1734868244775,-573950.23416911,0.00012996,2]
[346286403,1734868246858,-1017.99168661,0.00012996,2]
[346286404,1734868246878,-10299.799781,0.00012996,2]
[346286410,1734868246928,-265.3,0.00012996,2]
[346286448,1734868401680,3000.0,0.00013,30]
[346286449,1734868402138,3000.0,0.0001301,30]
[346286450,1734868402534,3000.0,0.0001302,30]
[346286451,1734868402892,3000.0,0.0001303,30]
[346286452,1734868403686,3000.0,0.0001304,30]
[346286453,1734868403774,3000.0,0.0001305,30]
[346286454,1734868404270,3000.0,0.0001306,30]
[346286455,1734868404849,3000.0,0.0001307,30]
[346286456,1734868405483,3000.0,0.0001308,30]
[346286457,1734868406023,3000.0,0.0001309,30]
[346286458,1734868406603,3000.0,0.000131,30]
[346286459,1734868406860,3000.0,0.0001311,30]
[346286460,1734868407266,3000.0,0.0001312,30]
[346286461,1734868407725,3000.0,0.0001313,30]
[346286462,1734868408409,3437.358197,0.0001314,30]
[346286504,1734869348291,-317.444,0.00011169,2]
[346286505,1734869348313,-172.556,0.00011282,2]
[346286537,1734869432798,-317.189,0.00012104,2]
[346286539,1734869432808,-317.189,0.00012226,2]
[346286541,1734869432817,-317.189,0.0001235,2]
[346286544,1734869432827,-2929.88347756,0.0001267,2]
[346286896,1734869438678,-581.65499999,0.00012651,2]
[346286898,1734869438690,-2474.28042901,0.00012651,2]
[346286900,1734869438699,-3055.935429,0.00012779,2]
[346286902,1734869438708,-352.1566237,0.000129,2]
[346286904,1734869438718,-3865.24030365,0.000129,2]
[346286906,1734869438727,-167.9152586,0.00012927,2]
[346286908,1734869438736,-153.0,0.00012927,2]
[346286910,1734869438746,-214.1010007,0.00012927,2]
[346286912,1734869438755,-214.1010007,0.00012927,2]
[346286914,1734869438763,-153.3554759,0.00012927,2]
[346286916,1734869438773,-155.1094375,0.00012927,2]
[346286918,1734869438782,-168.957,0.0001295,2]
[346286920,1734869438791,-505.97429202,0.00012973,2]
[346286922,1734869438800,-500.0,0.00012973,2]
[346286924,1734869438809,-500.0,0.00012973,2]
[346286926,1734869438818,-500.0,0.00012973,2]
[346286928,1734869438827,-500.0,0.00012973,2]
[346286930,1734869438836,-500.0,0.00012973,2]
[346286932,1734869438846,-500.0,0.00012973,2]
[346286934,1734869438855,-500.0,0.00012973,2]
[346286936,1734869438864,-500.0,0.00012973,2]
[346286938,1734869438874,-500.0,0.00012973,2]
[346286940,1734869438883,-500.0,0.00012973,2]
[346286942,1734869438893,-444.78226455,0.00012973,2]
[346286944,1734869438903,-151.0,0.00012989,2]
[346286946,1734869438914,-3200.0,0.00012989,2]
[346286948,1734869438923,-657.758,0.00012989,2]
[346286950,1734869438932,-11228.49410747,0.00012996,2]
[346286954,1734869438954,-2005.52602761,0.00012996,2]
[346286956,1734869438971,-28998.36369308,0.00012996,2]
[346286959,1734869438984,-21824.64579675,0.00012996,2]
[346287163,1734869440843,-7705.42013697,0.00012996,2]
[346287199,1734869443696,-17509.20952992,0.00012996,2]
[346287200,1734869443750,-73445.53928625,0.00012996,2]
[346287201,1734869443760,-291.51,0.00012996,2]
[346287202,1734869443769,-593990.72595749,0.00013,2]
[346287203,1734869443804,-1504.95,0.00013,2]
[346287220,1734869928282,1844.78819765,0.0001,2]
[346287335,1734870632098,-303.952,0.00011057,2]
[346287336,1734870632109,-303.952,0.00011169,2]
[346287337,1734870632120,-304.114,0.0001235,2]
[346287338,1734870632129,-300.0,0.00012769,2]
[346287339,1734870632138,-300.0,0.00012769,2]
[346287340,1734870632147,-21148.06969958,0.0001277,2]
[346287381,1734870637907,-13335.93030042,0.0001277,2]
[346287383,1734870637916,-3478.71627333,0.000129,2]
[346287385,1734870637925,-500.0,0.00012973,2]
[346287387,1734870637935,-500.0,0.00012973,2]
[346287389,1734870637948,-503.51640862,0.00012973,2]
[346287391,1734870637958,-500.0,0.00012973,2]
[346287393,1734870637967,-160.79653164,0.00012973,2]
[346287395,1734870637976,-97.01558582,0.00012973,2]
[346287705,1734870642930,-364.11394091,0.00012642,2]
[346287707,1734870642941,-3966.90914009,0.00012642,2]
[346287708,1734870642951,-402.98441418,0.00012973,2]
[346287709,1734870642960,-500.0,0.00012973,2]
[346287710,1734870642969,-161.63528375,0.00012973,2]
[346287711,1734870642978,-500.0,0.00012973,2]
[346287712,1734870642988,-477.60418509,0.00012973,2]
[346287713,1734870642997,-500.0,0.00012973,2]
[346287714,1734870643006,-500.0,0.00012973,2]
[346287715,1734870643015,-500.0,0.00012973,2]
[346287716,1734870643025,-500.0,0.00012973,2]
[346287717,1734870643034,-500.0,0.00012973,2]
[346287718,1734870643043,-500.0,0.00012973,2]
[346287719,1734870643053,-500.0,0.00012973,2]
[346287720,1734870643062,-291.44178442,0.00012973,2]
[346287750,1734870646082,-208.55821558,0.00012973,2]
[346287751,1734870646092,-500.0,0.00012973,2]
[346287752,1734870646102,-168.957,0.00012973,2]
[346287753,1734870646112,-9476.02588946,0.00013,2]
[346287816,1734871832306,-250.0,0.00011195,2]
[346287818,1734871832316,-529.5427066,0.0001153,2]
[346287820,1734871832326,-321.62962917,0.00011535,2]
[346287827,1734871832387,-19.74358843,0.00011535,2]
[346287829,1734871832396,-157.81215229,0.00011535,2]
[346287831,1734871832407,-250.0,0.00011654,2]
[346287833,1734871832418,-900.0,0.0001182,2]
[346287835,1734871832427,-900.0,0.0001182,2]
[346287837,1734871832436,-900.0,0.0001182,2]
[346287839,1734871832446,-900.0,0.0001182,2]
[346287841,1734871832456,-886.12,0.0001182,2]
[346287843,1734871832465,-250.0,0.00011865,2]
[346287845,1734871832475,-291.262,0.0001235,2]
[346287847,1734871832484,-352.1566237,0.00012641,2]
[346287849,1734871832495,-153.3554759,0.00012778,2]
[346287851,1734871832504,-300.0,0.00012818,2]
[346287853,1734871832514,-300.0,0.00012818,2]
[346287855,1734871832524,-500.0,0.00012819,2]
[346287858,1734871832534,-500.0,0.00012819,2]
[346287860,1734871832546,-500.0,0.00012819,2]
[346287863,1734871832561,-341.05510219,0.00012819,2]
[346287865,1734871832577,-500.0,0.00012819,2]
[346287868,1734871832592,-1002.17896336,0.00012819,2]
[346287870,1734871832605,-34484.0,0.0001282,2]
[346287872,1734871832621,-352.1566237,0.000129,2]
[346287875,1734871832635,-352.1566237,0.000129,2]
[346287877,1734871832649,-214.1010007,0.000129,2]
[346287880,1734871832664,-153.0,0.000129,2]
[346287882,1734871832678,-3130.84464597,0.000129,2]
[346287885,1734871832691,-504.85415473,0.00012973,2]
[346287888,1734871832708,-500.0,0.00012973,2]
[346287890,1734871832722,-500.0,0.00012973,2]
[346287893,1734871832735,-187.99,0.00012973,2]
[346287895,1734871832748,-1602.42517305,0.00013,2]